bitfinex-derivatives/quotes_SOLF0:USTF0_20260208
["timestamp","ask_amount","ask_price","bid_price","bid_amount"]
[1770570078765,19.0876631,86.423,86.342,19.1009131]
[1770570079165,19.0876631,86.423,86.345,19.1009131]
[1770570079759,19.0876631,86.423,86.349,29.5317131]
[1770570079963,10.4207,86.434,86.314,46.47]
[1770570079964,19.02658702,86.42,86.35,19.1009131]
[1770570081160,19.02658702,86.42,86.332,19.1009131]
[1770570081965,19.09133354,86.403,86.316,19.1009131]
[1770570082467,19.09133354,86.403,86.192,162.5545]
[1770570082468,19.09133354,86.369,86.294,10.4375]
[1770570082863,19.09133354,86.369,86.296,10.4372]
[1770570083062,19.09133354,86.369,86.297,19.1009131]
[1770570085963,19.40220141,86.388,86.3,19.1009131]
[1770570086272,19.40220141,86.386,86.3,19.1009131]
[1770570086571,19.40220141,86.373,86.282,19.1009131]
[1770570087171,162.1369,86.415,86.282,19.1009131]
[1770570087172,19.27105023,86.371,86.282,19.1009131]
[1770570087365,19.27105023,86.369,86.284,19.1009131]
[1770570087970,19.27204124,86.414,86.284,19.1009131]
[1770570088276,19.27204124,86.393,86.313,19.1009131]
[1770570088872,19.27204124,86.393,86.315,19.1009131]
[1770570089165,10.46895199,86.416,86.315,19.1009131]
[1770570089166,19.26085397,86.412,86.315,19.1009131]
[1770570089874,19.26214882,86.43,86.342,19.1009131]
[1770570090569,19.26214882,86.43,86.349,10.4308]
[1770570090767,19.26214882,86.43,86.35,19.1009131]
[1770570092364,19.26214882,86.43,86.36,19.1009131]
[1770570092966,19.26214882,86.43,86.364,19.1009131]
[1770570094580,298.0,86.495,86.377,19.1009131]
[1770570094581,19.49910336,86.449,86.377,19.1009131]
[1770570094776,19.86661139,86.445,86.377,19.1009131]
[1770570096079,19.86661139,86.445,86.379,19.1009131]
[1770570096784,0.52895026,86.445,86.382,19.1009131]
[1770570098881,0.52895026,86.445,86.383,10.4267]
[1770570099085,0.52895026,86.445,86.384,19.1009131]
[1770570099281,19.93526466,86.445,86.384,19.1009131]
[1770570101282,19.93526466,86.445,86.356,19.1009131]
[1770570101782,19.93526466,86.445,86.371,19.1009131]
[1770570102679,19.93526466,86.445,86.372,10.428]
[1770570102880,19.93526466,86.445,86.373,19.1009131]
[1770570105385,19.93526466,86.445,86.375,18.9809075]
[1770570107386,19.93526466,86.445,86.38,18.9809075]
[1770570107387,0.52895026,86.445,86.38,18.9809075]
[1770570108389,0.52895026,86.445,86.389,18.9809075]
[1770570109382,0.52895026,86.445,86.357,11.61]
[1770570109383,0.52895026,86.445,86.394,18.9809075]
[1770570109683,20.52963727,86.445,86.394,18.9809075]
[1770570109985,20.52963727,86.445,86.36,18.9809075]
[1770570110188,20.52963727,86.445,86.374,18.9809075]
[1770570110791,20.52963727,86.445,86.378,10.4274]
[1770570110989,20.52963727,86.445,86.379,18.9809075]
[1770570111490,20.52963727,86.445,86.384,18.9809075]
[1770570112493,0.52895026,86.445,86.386,18.9809075]
[1770570112992,0.52895026,86.445,86.391,18.9809075]
[1770570113793,0.52895026,86.445,86.395,18.9809075]
[1770570116191,20.08870563,86.444,86.374,18.9809075]
[1770570117596,20.08870563,86.444,86.376,18.9809075]
[1770570118200,0.52895026,86.445,86.376,18.9809075]
[1770570118793,0.52895026,86.445,86.391,18.9809075]
[1770570121798,20.37275914,86.445,86.356,18.9809075]
[1770570122703,19.97199857,86.432,86.337,18.9809075]
[1770570122898,19.97369197,86.43,86.337,18.9809075]
[1770570123098,19.97369197,86.41,86.337,18.9809075]
[1770570124801,20.17209366,86.408,86.337,18.9809075]
[1770570125297,20.17209366,86.405,86.324,18.9809075]
[1770570125498,20.17209366,86.43,86.326,18.9809075]
[1770570125700,0.52895026,86.445,86.33,18.9809075]
[1770570125902,20.70227586,86.445,86.374,18.9809075]
[1770570127707,20.70227586,86.445,86.376,18.9809075]
[1770570128906,0.52895026,86.445,86.393,18.9809075]
[1770570129405,20.70881178,86.445,86.379,10.4272]
[1770570129606,20.70881178,86.445,86.379,18.9809075]
[1770570132399,0.52895026,86.445,86.381,18.9809075]
[1770570133402,0.52895026,86.445,86.397,18.9809075]
[1770570134514,20.77030406,86.445,86.379,18.9809075]
[1770570135013,20.77030406,86.445,86.381,19.03178265]
[1770570135617,20.77030406,86.445,86.333,34.86]
[1770570135618,20.77030406,86.445,86.384,19.03178265]
[1770570137310,20.77030406,86.445,86.366,19.03178265]
[1770570137511,19.73761734,86.443,86.366,19.03178265]
[1770570137710,19.73761734,86.441,86.366,19.03178265]
[1770570138112,19.73761734,86.439,86.366,19.03178265]
[1770570139911,0.52895026,86.445,86.369,19.03178265]
[1770570140510,0.52895026,86.445,86.389,19.03178265]
[1770570141317,0.52895026,86.445,86.405,19.03178265]
[1770570142715,0.52895026,86.445,86.407,10.4239]
[1770570143015,0.52895026,86.445,86.408,19.03178265]
[1770570143216,19.73761734,86.476,86.408,19.03178265]
[1770570143616,8.91892847,86.475,86.408,19.03178265]
[1770570143813,8.91892847,86.474,86.408,19.03178265]
[1770570144010,19.73761734,86.476,86.408,19.03178265]
[1770570144211,8.92372081,86.475,86.408,19.03178265]
[1770570144410,19.73761734,86.476,86.408,19.03178265]
[1770570144813,19.73761734,86.476,86.411,19.03178265]
[1770570149414,19.73761734,86.476,86.413,19.03178265]
[1770570150810,19.73761734,86.476,86.417,19.03178265]
[1770570151916,19.73761734,86.476,86.372,34.86]
[1770570151917,19.73761734,86.501,86.423,19.03178265]
[1770570152118,19.73761734,86.499,86.423,19.03178265]
[1770570152415,19.73761734,86.497,86.423,19.03178265]
[1770570152614,19.73761734,86.495,86.423,19.03178265]
[1770570152821,19.73761734,86.493,86.427,19.03178265]
[1770570153021,28.64421549,86.492,86.427,19.03178265]
[1770570153216,19.73761734,86.492,86.427,19.03178265]
[1770570153619,19.73761734,86.492,86.38,19.03178265]
[1770570153822,19.73761734,86.49,86.387,19.03178265]
[1770570154118,19.73761734,86.49,86.386,34.75]
[1770570154119,19.73761734,86.488,86.393,19.03178265]
[1770570154824,19.73761734,86.488,86.427,19.03178265]
[1770570157421,19.73761734,86.488,86.428,19.03178265]
[1770570158130,19.73761734,86.488,86.438,19.03178265]
[1770570159730,19.73761734,86.508,86.44,19.03178265]
[1770570159935,8.89753064,86.507,86.44,19.03178265]
[1770570160126,19.73761734,86.508,86.44,19.03178265]
[1770570160329,19.73761734,86.506,86.431,10.421]
[1770570160624,19.73761734,86.504,86.424,19.03178265]
[1770570160827,19.73761734,86.502,86.426,19.03178265]
[1770570161023,19.73761734,86.5,86.426,19.03178265]
[1770570161229,19.73761734,86.498,86.426,19.03178265]
[1770570161836,19.73761734,86.498,86.428,19.03178265]
[1770570162036,19.73761734,86.496,86.428,19.03178265]
[1770570162241,19.73761734,86.494,86.428,19.03178265]
[1770570166244,19.95466454,86.492,86.428,19.03178265]
[1770570166442,19.95466454,86.487,86.406,19.79369985]
[1770570166643,19.95466454,86.485,86.392,11.56]
[1770570166948,19.95466454,86.46,86.39,19.79369985]
[1770570167341,19.95466454,86.46,86.393,19.79369985]
[1770570167739,19.95466454,86.46,86.395,19.79369985]
[1770570168950,19.95466454,86.46,86.399,19.79369985]
[1770570169343,0.5,86.461,86.403,19.79369985]
[1770570169742,20.45466454,86.461,86.403,19.79369985]
[1770570172953,20.45466454,86.461,86.389,10.426]
[1770570172954,20.45466454,86.461,86.405,19.79369985]
[1770570173552,19.95466454,86.459,86.392,10.4257]
[1770570173854,19.95466454,86.459,86.389,19.79369985]
[1770570174049,19.95466454,86.457,86.389,19.79369985]
[1770570174356,19.95466454,86.455,86.343,19.79369985]
[1770570174548,19.95466454,86.438,86.357,19.79369985]
[1770570174751,19.95466454,86.436,86.342,19.79369985]
[1770570174943,19.95466454,86.434,86.342,19.79369985]
[1770570175146,19.95466454,86.431,86.342,19.79369985]
[1770570175349,21.02966452,86.455,86.34,231.24]
[1770570175350,19.95466454,86.405,86.34,231.24]
[1770570176144,19.95466454,86.405,86.341,19.79369985]
[1770570179258,19.95466454,86.405,86.343,19.79369985]
[1770570179457,19.95466454,86.444,86.343,19.79369985]
[1770570179758,19.95466454,86.442,86.368,19.79369985]
[1770570180356,19.95466454,86.44,86.368,19.79369985]
[1770570180948,19.95466454,86.457,86.371,19.79369985]
[1770570181259,0.5,86.461,86.371,19.79369985]
[1770570181461,19.95466454,86.46,86.399,19.79369985]
[1770570182758,19.95466454,86.46,86.399,30.21859985]
[1770570183461,19.95466454,86.46,86.401,30.21829985]
[1770570184058,19.95466454,86.46,86.402,19.79369985]
[1770570184465,19.95466454,86.46,86.407,19.79369985]
[1770570184651,0.5,86.461,86.407,19.79369985]
[1770570185559,0.5,86.461,86.42,19.79369985]
[1770570185865,19.95466454,86.499,86.42,19.79369985]
[1770570186752,19.95466454,86.499,86.426,19.79369985]
[1770570187359,19.95466454,86.516,86.43,19.79369985]
[1770570188352,19.95466454,86.516,86.44,19.79369985]
[1770570189859,19.95466454,86.516,86.442,19.79369985]
[1770570190261,19.95466454,86.516,86.444,19.79369985]
[1770570191368,19.95466454,86.516,86.451,10.4186]
[1770570191669,19.95466454,86.516,86.452,19.79369985]
[1770570192060,19.95466454,86.516,86.455,19.79369985]
[1770570192269,19.95466454,86.533,86.455,19.79369985]
[1770570192563,19.95466454,86.55,86.455,19.79369985]
[1770570193360,19.95466454,86.55,86.48,19.79369985]
[1770570193864,448.0,86.605,86.497,19.79369985]
[1770570193865,19.95466454,86.583,86.497,19.79369985]
[1770570194061,8.87813554,86.582,86.497,19.79369985]
[1770570194367,19.95466454,86.583,86.507,19.79369985]
[1770570194569,21.02966452,86.637,86.507,19.79369985]
[1770570194570,19.95466454,86.602,86.507,19.79369985]
[1770570194862,19.34983015,86.6,86.507,19.79369985]
[1770570195057,20.54160607,86.598,86.507,19.79369985]
[1770570195259,20.54160607,86.598,86.513,10.411]
[1770570195460,20.54160607,86.598,86.507,19.79369985]
[1770570195655,20.54160607,86.596,86.446,19.6672238]
[1770570195864,20.54160607,86.594,86.446,19.6672238]
[1770570196069,20.54160607,86.592,86.446,19.6672238]
[1770570196260,20.54160607,86.58,86.48,19.6672238]
[1770570196563,20.54160607,86.578,86.48,19.6672238]
[1770570196766,20.54160607,86.556,86.48,19.6672238]
[1770570197461,20.54160607,86.556,86.482,19.6672238]
[1770570197866,20.54160607,86.592,86.482,19.6672238]
[1770570198067,20.54160607,86.592,86.522,19.6672238]
[1770570199869,20.54160607,86.609,86.522,19.6672238]
[1770570200564,20.54160607,86.609,86.526,19.6672238]
[1770570201563,2.01014314,86.661,86.471,231.16]
[1770570201564,20.54160607,86.606,86.505,19.6672238]
[1770570201765,10.49891248,86.634,86.471,231.16]
[1770570201766,20.54160607,86.604,86.495,19.6672238]
[1770570201960,20.54160607,86.602,86.495,19.6672238]
[1770570202159,20.54160607,86.589,86.495,19.6672238]
[1770570202362,20.54160607,86.589,86.508,19.6672238]
[1770570203069,20.54160607,86.589,86.524,30.0769238]
[1770570203264,20.54160607,86.589,86.505,19.6672238]
[1770570204665,20.54160607,86.589,86.522,19.6672238]
[1770570205269,20.54160607,86.607,86.524,19.6672238]
[1770570205878,20.54160607,86.605,86.524,19.6672238]
[1770570206170,21.02966452,86.648,86.488,34.75]
[1770570206171,20.54160607,86.582,86.488,19.6672238]
[1770570206572,20.54160607,86.58,86.488,19.6672238]
[1770570206773,20.54160607,86.559,86.488,19.6672238]
[1770570207576,13.92124894,86.608,86.488,19.6672238]
[1770570207577,20.54160607,86.557,86.488,19.6672238]
[1770570208776,20.54160607,86.557,86.441,19.6672238]
[1770570208977,20.54160607,86.557,86.443,19.6672238]
[1770570209172,20.54160607,86.557,86.45,34.75]
[1770570209378,20.54160607,86.557,86.453,19.6672238]
[1770570209781,20.54160607,86.578,86.492,19.6672238]
[1770570211076,20.54160607,86.578,86.453,19.6672238]
[1770570211272,448.0,86.629,86.472,19.6672238]
[1770570211273,20.54160607,86.556,86.472,19.6672238]
[1770570212674,10.4066,86.551,86.472,19.6672238]
[1770570212882,20.54160607,86.55,86.472,19.6672238]
[1770570213476,20.54160607,86.547,86.459,10.4175]
[1770570213674,20.54160607,86.547,86.454,19.6672238]
[1770570214174,20.54160607,86.528,86.454,19.6672238]
[1770570214677,20.54160607,86.514,86.416,19.6672238]
[1770570215276,20.54160607,86.514,86.441,19.6672238]
[1770570215672,20.54160607,86.514,86.444,19.6672238]
[1770570215875,10.4081,86.538,86.444,19.6672238]
[1770570215876,20.54160607,86.537,86.444,19.6672238]
[1770570216172,20.54160607,86.537,86.459,10.4175]
[1770570216477,20.54160607,86.537,86.46,19.6672238]
[1770570217072,20.54160607,86.563,86.474,19.6672238]
[1770570217975,20.54160607,86.563,86.489,10.414]
[1770570218175,20.54160607,86.563,86.49,19.6672238]
[1770570219285,20.54160607,86.563,86.496,10.4132]
[1770570219581,20.54160607,86.563,86.497,19.6672238]
[1770570220286,20.54160607,86.563,86.47,56.0]
[1770570220287,20.54160607,86.563,86.499,19.6672238]
[1770570220581,10.4022,86.588,86.499,19.6672238]
[1770570220582,20.54160607,86.581,86.499,19.6672238]
[1770570220773,20.54160607,86.581,86.511,19.6672238]
[1770570221784,20.54160607,86.581,86.515,10.4109]
[1770570222082,20.54160607,86.581,86.516,19.6672238]
[1770570222477,20.54160607,86.581,86.523,19.6672238]
[1770570223683,20.54160607,86.581,86.524,10.4098]
[1770570224278,20.54160607,86.581,86.503,19.6672238]
[1770570224482,20.54160607,86.579,86.486,19.6672238]
[1770570224673,20.54160607,86.577,86.486,19.6672238]
[1770570225077,18.73032557,86.574,86.494,10.4134]
[1770570225274,18.73032557,86.572,86.486,19.6672238]
[1770570225478,18.73032557,86.57,86.486,19.6672238]
[1770570225678,18.73032557,86.568,86.492,10.4136]
[1770570225889,18.73032557,86.566,86.486,19.6672238]
[1770570226080,18.73032557,86.564,86.486,19.6672238]
[1770570226282,18.73032557,86.562,86.486,19.6672238]
[1770570226483,18.73032557,86.56,86.486,19.6672238]
[1770570227187,10.405,86.565,86.486,19.6672238]
[1770570227188,18.73032557,86.558,86.486,19.6672238]
[1770570227392,18.73032557,86.556,86.486,19.6672238]
[1770570227690,18.73032557,86.554,86.486,19.6672238]
[1770570228085,18.73032557,86.552,86.486,19.6672238]
[1770570228394,18.73032557,86.55,86.486,19.6672238]
[1770570228985,18.73032557,86.55,86.49,19.22537693]
[1770570229591,18.73032557,86.567,86.492,19.22537693]
[1770570229889,8.90454185,86.566,86.492,19.22537693]
[1770570230090,18.73032557,86.565,86.492,19.22537693]
[1770570230290,10.4029,86.582,86.492,19.22537693]
[1770570230291,18.73032557,86.563,86.492,19.22537693]
[1770570231388,18.73032557,86.581,86.506,19.22537693]
[1770570231593,18.73032557,86.579,86.506,19.22537693]
[1770570231795,18.73032557,86.577,86.506,19.22537693]
[1770570231993,18.73032557,86.575,86.506,19.22537693]
[1770570232184,8.91666463,86.574,86.506,19.22537693]
[1770570232386,8.91666463,86.573,86.506,19.22537693]
[1770570232584,8.91666463,86.573,86.452,162.064]
[1770570232585,18.73032557,86.571,86.495,10.4133]
[1770570232787,18.73032557,86.566,86.489,19.22537693]
[1770570233093,18.73032557,86.562,86.489,19.22537693]
[1770570233293,18.73032557,86.56,86.489,19.22537693]
[1770570233493,18.73032557,86.558,86.489,19.22537693]
[1770570233693,13.82415386,86.575,86.489,19.22537693]
[1770570233694,18.73032557,86.556,86.489,19.22537693]
[1770570233894,18.73032557,86.554,86.489,19.22537693]
[1770570234097,18.73032557,86.552,86.489,19.22537693]
[1770570234293,18.73032557,86.55,86.489,19.22537693]
[1770570234493,18.73032557,86.548,86.489,19.22537693]
[1770570234895,10.4056,86.559,86.43,182.9474]
[1770570234896,18.73032557,86.546,86.471,19.22537693]
[1770570235096,10.4056,86.559,86.471,19.22537693]
[1770570235097,18.73032557,86.544,86.471,19.22537693]
[1770570236094,18.73032557,86.544,86.485,19.22537693]
[1770570237795,18.73032557,86.561,86.487,19.22537693]
[1770570238293,18.73032557,86.561,86.489,19.22537693]
[1770570238494,10.4043,86.57,86.489,19.22537693]
[1770570238495,18.73032557,86.559,86.489,19.22537693]
[1770570238693,8.94157434,86.558,86.489,19.22537693]
[1770570238894,18.73032557,86.556,86.489,19.22537693]
[1770570239095,0.5,86.508,86.489,19.22537693]
[1770570240000,18.73032557,86.538,86.489,19.22537693]
[1770570240994,18.73032557,86.572,86.489,19.22537693]
[1770570241391,18.73032557,86.601,86.489,19.22537693]
[1770570241597,18.73032557,86.599,86.489,19.22537693]
[1770570241792,18.73032557,86.597,86.489,19.22537693]
[1770570241997,18.73032557,86.595,86.489,19.22537693]
[1770570242197,18.73032557,86.593,86.489,19.22537693]
[1770570242504,18.73032557,86.591,86.489,19.22537693]
[1770570242703,18.73032557,86.591,86.514,10.4109]
[1770570242905,18.73032557,86.589,86.514,10.4109]
[1770570243098,18.73032557,86.587,86.515,19.22537693]
[1770570243806,18.73032557,86.585,86.515,19.22537693]
[1770570244006,18.73032557,86.583,86.515,19.22537693]
[1770570244207,18.73032557,86.573,86.463,19.22537693]
[1770570244405,21.02966452,86.596,86.463,19.22537693]
[1770570244406,8.93509493,86.572,86.463,19.22537693]
[1770570244610,18.73032557,86.588,86.511,19.22537693]
[1770570244799,18.73032557,86.586,86.456,19.22537693]
[1770570245002,18.73032557,86.583,86.456,19.22537693]
[1770570245303,18.73032557,86.581,86.463,19.22537693]
[1770570245509,18.73032557,86.579,86.463,19.22537693]
[1770570245710,18.73032557,86.571,86.488,19.22537693]
[1770570246007,18.73032557,86.569,86.488,19.22537693]
[1770570246209,18.73032557,86.567,86.488,19.22537693]
[1770570246404,18.73032557,86.566,86.492,10.4135]
[1770570246610,18.73032557,86.566,86.493,19.22537693]
[1770570247707,18.73032557,86.566,86.508,10.4116]
[1770570248105,18.73032557,86.566,86.508,29.63697693]
[1770570248299,18.73032557,86.566,86.509,19.22537693]
[1770570250408,18.73032557,86.591,86.514,19.22537693]
[1770570250612,18.73032557,86.589,86.514,19.22537693]
[1770570250805,18.73032557,86.587,86.514,19.22537693]
[1770570251109,18.73032557,86.585,86.514,19.22537693]
[1770570251306,18.73032557,86.58,86.514,19.22537693]
[1770570251608,18.73032557,86.578,86.508,10.4117]
[1770570251810,18.73032557,86.576,86.508,10.4117]
[1770570252010,18.73032557,86.576,86.473,11.56]
[1770570252011,18.73032557,86.574,86.513,10.411]
[1770570252213,8.93518308,86.573,86.513,10.411]
[1770570252406,18.73032557,86.574,86.514,19.22537693]
[1770570252606,18.73032557,86.574,86.455,20.8362]
[1770570252607,18.73032557,86.574,86.516,19.22537693]
[1770570252814,18.73032557,86.572,86.516,19.22537693]
[1770570253107,18.73032557,86.572,86.52,19.22537693]
[1770570253709,18.73032557,86.572,86.522,10.4099]
[1770570255216,18.73032557,86.572,86.51,10.4114]
[1770570255418,28.04315659,86.641,86.51,10.4114]
[1770570255419,18.60303693,86.57,86.51,10.4114]
[1770570255715,18.60303693,86.57,86.511,18.74744752]
[1770570256013,18.60303693,86.57,86.514,18.74744752]
[1770570260326,8.89731677,86.569,86.514,18.74744752]
[1770570260521,8.89731677,86.568,86.514,18.74744752]
[1770570260720,18.60303693,86.57,86.514,18.74744752]
[1770570260922,8.89735754,86.569,86.514,18.74744752]
[1770570261223,8.89735754,86.568,86.514,18.74744752]
[1770570261528,8.89735754,86.567,86.516,18.74744752]
[1770570261829,18.60303693,86.57,86.516,18.74744752]
[1770570263225,10.51989839,86.59,86.516,18.74744752]
[1770570263427,18.60303693,86.588,86.518,18.74744752]
[1770570263618,21.02966452,86.617,86.518,18.74744752]
[1770570263619,18.60303693,86.586,86.518,18.74744752]
[1770570263818,18.60303693,86.584,86.518,18.74744752]
[1770570264726,18.60303693,86.584,86.523,10.4099]
[1770570265224,18.60303693,86.584,86.523,29.15734752]
[1770570265620,18.60303693,86.584,86.524,18.74744752]
[1770570265825,18.60303693,86.582,86.504,18.74744752]
[1770570266029,18.60303693,86.58,86.504,18.74744752]
[1770570266332,18.60303693,86.577,86.504,18.74744752]
[1770570266533,18.60303693,86.575,86.504,18.74744752]
[1770570266828,10.4033,86.578,86.504,18.74744752]
[1770570266829,18.60303693,86.573,86.504,18.74744752]
[1770570267026,18.60303693,86.571,86.504,18.74744752]
[1770570267232,18.60303693,86.569,86.504,18.74744752]
[1770570267534,18.60303693,86.567,86.504,18.74744752]
[1770570267730,18.60303693,86.565,86.505,18.74744752]
[1770570269427,18.60303693,86.585,86.507,18.74744752]
[1770570269626,18.60303693,86.583,86.507,18.74744752]
[1770570269826,18.60303693,86.581,86.507,18.74744752]
[1770570270032,18.60303693,86.579,86.507,18.74744752]
[1770570270232,18.60303693,86.577,86.517,18.74744752]
[1770570271029,18.60303693,86.575,86.517,18.74744752]
[1770570271827,18.60303693,86.575,86.459,162.0517]
[1770570271828,18.60303693,86.571,86.501,18.74744752]
[1770570272128,18.60303693,86.569,86.501,18.74744752]
[1770570272337,18.60303693,86.567,86.501,18.74744752]
[1770570272631,18.60303693,86.565,86.501,18.74744752]
[1770570272831,8.89540477,86.564,86.501,18.74744752]
[1770570273036,18.60303693,86.579,86.501,18.74744752]
[1770570273228,18.60303693,86.577,86.512,18.74744752]
[1770570273431,18.60303693,86.575,86.512,18.74744752]
[1770570273628,18.60303693,86.573,86.512,18.74744752]
[1770570274235,18.60303693,86.573,86.518,10.4104]
[1770570274534,18.60303693,86.573,86.519,18.74744752]
[1770570276538,18.60303693,86.571,86.519,18.74744752]
[1770570276942,18.60303693,86.571,86.521,18.74744752]
[1770570278034,18.60303693,86.571,86.509,10.4115]
[1770570278237,18.60303693,86.569,86.506,18.74744752]
[1770570278442,18.60303693,86.567,86.506,18.74744752]
[1770570278640,18.60303693,86.565,86.506,18.74744752]
[1770570278940,18.60303693,86.563,86.507,10.4118]
[1770570279938,18.60303693,86.563,86.508,18.74744752]
[1770570280144,18.60303693,86.585,86.511,18.74744752]
[1770570280339,18.60303693,86.583,86.511,18.74744752]
[1770570280642,18.60303693,86.583,86.522,18.74744752]
[1770570280845,18.60303693,86.581,86.522,18.74744752]
[1770570281033,8.89633862,86.58,86.522,18.74744752]
[1770570281238,18.60303693,86.581,86.522,18.74744752]
[1770570281539,18.60303693,86.579,86.522,18.74744752]
[1770570281735,18.60303693,86.577,86.522,18.74744752]
[1770570283341,18.60303693,86.577,86.524,18.74744752]
[1770570284231,8.91424166,86.576,86.524,18.74744752]
[1770570284534,13.82415386,86.606,86.48,20.8301]
[1770570284535,10.51989839,86.605,86.527,18.74744752]
[1770570284845,18.8053311,86.6,86.527,18.74744752]
[1770570285037,18.8053311,86.595,86.527,18.74744752]
[1770570285338,27.69972308,86.594,86.527,18.74744752]
[1770570285538,27.69972308,86.593,86.527,18.74744752]
[1770570285740,18.8053311,86.591,86.527,18.74744752]
[1770570285943,18.8053311,86.589,86.527,18.74744752]
[1770570286143,27.69972308,86.588,86.527,18.74744752]
[1770570286339,8.89439198,86.587,86.527,18.74744752]
[1770570286543,8.89439198,86.586,86.529,19.48872878]
[1770570286744,8.89439198,86.585,86.529,19.48872878]
[1770570286946,8.89439198,86.584,86.529,19.48872878]
[1770570287147,8.89439198,86.583,86.529,19.48872878]
[1770570287445,8.89439198,86.582,86.529,19.48872878]
[1770570287633,18.8053311,86.602,86.529,19.48872878]
[1770570287840,9.05429535,86.601,86.533,19.48872878]
[1770570288035,21.02966452,86.626,86.533,19.48872878]
[1770570288036,27.85962645,86.6,86.533,19.48872878]
[1770570288236,27.85962645,86.6,86.499,34.75]
[1770570288237,9.04996586,86.599,86.544,19.48872878]
[1770570288440,9.0496045,86.598,86.544,19.48872878]
[1770570288640,18.8053311,86.621,86.544,19.48872878]
[1770570288836,18.8053311,86.621,86.489,11.56]
[1770570288837,18.8053311,86.621,86.548,19.48872878]
[1770570289036,18.8053311,86.614,86.492,19.48872878]
[1770570289247,18.8053311,86.612,86.492,19.48872878]
[1770570289448,18.8053311,86.612,86.534,19.48872878]
[1770570290050,18.8053311,86.612,86.54,10.4078]
[1770570290345,18.8053311,86.612,86.541,19.48872878]
[1770570290649,18.8053311,86.604,86.541,19.48872878]
[1770570296441,18.69279749,86.604,86.547,10.407]
[1770570296646,18.69279749,86.604,86.548,19.48872878]
[1770570296847,10.51989839,86.625,86.558,19.48872878]
[1770570297043,10.51989839,86.63,86.558,19.48872878]
[1770570297952,10.51989839,86.628,86.558,19.48872878]
[1770570298154,10.51989839,86.626,86.558,19.48872878]
[1770570298354,24.22035386,86.638,86.56,19.48872878]
[1770570298355,10.51989839,86.63,86.56,19.48872878]
[1770570298653,10.51989839,86.63,86.465,11.56]
[1770570298654,18.8053311,86.622,86.511,19.48872878]
[1770570298849,18.8053311,86.604,86.515,10.4109]
[1770570299054,18.8053311,86.604,86.516,19.48872878]
[1770570299357,18.8053311,86.602,86.516,19.48872878]
[1770570299554,18.8053311,86.596,86.516,19.48872878]
[1770570300050,18.8053311,86.595,86.516,19.48872878]
[1770570300261,18.8053311,86.583,86.5,19.48872878]
[1770570300448,18.8053311,86.582,86.5,19.48872878]
[1770570300654,18.8053311,86.58,86.512,19.48872878]
[1770570300957,18.8053311,86.578,86.512,19.48872878]
[1770570301154,8.98756191,86.577,86.512,19.48872878]
[1770570301354,18.8053311,86.597,86.535,19.48872878]
[1770570301651,21.02966452,86.622,86.535,19.48872878]
[1770570301652,18.8053311,86.609,86.535,19.48872878]
[1770570301854,8.99125785,86.608,86.55,19.48872878]
[1770570302047,8.98983187,86.607,86.55,19.48872878]
[1770570302247,8.98983187,86.606,86.55,19.48872878]
[1770570302553,18.8053311,86.609,86.55,19.48872878]
[1770570302752,18.8053311,86.607,86.533,29.89742878]
[1770570302953,18.8053311,86.605,86.533,19.48872878]
[1770570303148,18.8053311,86.601,86.533,19.48872878]
[1770570303350,18.8053311,86.597,86.515,19.48872878]
[1770570303554,18.8053311,86.592,86.515,19.48872878]
[1770570303751,18.8053311,86.59,86.515,19.48872878]
[1770570303956,18.8053311,86.588,86.515,19.48872878]
[1770570304251,18.8053311,86.586,86.515,19.48872878]
[1770570304452,18.8053311,86.584,86.515,19.48872878]
[1770570304759,18.8053311,86.582,86.515,19.48872878]
[1770570305051,18.8053311,86.58,86.515,19.48872878]
[1770570305252,18.8053311,86.578,86.515,19.48872878]
[1770570305453,18.8053311,86.576,86.515,19.48872878]
[1770570307254,18.8053311,86.574,86.515,19.48872878]
[1770570307454,18.8053311,86.572,86.515,19.48872878]
[1770570307761,18.8053311,86.588,86.518,19.48872878]
[1770570308063,10.4016,86.593,86.518,19.48872878]
[1770570308064,18.8053311,86.586,86.518,19.48872878]
[1770570308253,18.8053311,86.584,86.52,10.4102]
[1770570308558,18.8053311,86.582,86.518,19.48872878]
[1770570308757,18.8053311,86.58,86.518,19.48872878]
[1770570308954,18.8053311,86.578,86.518,19.48872878]
[1770570309155,18.8053311,86.576,86.518,19.48872878]
[1770570309355,18.8053311,86.574,86.518,19.48872878]
[1770570309550,18.8053311,86.572,86.518,19.48872878]
[1770570311263,18.8053311,86.572,86.52,19.48872878]
[1770570312065,18.8053311,86.57,86.52,19.48872878]
[1770570313060,18.8053311,86.607,86.52,19.48872878]
[1770570313266,27.77570051,86.606,86.52,19.48872878]
[1770570313472,27.77570051,86.605,86.52,19.48872878]
[1770570313671,18.8053311,86.605,86.52,19.48872878]
[1770570313965,18.8053311,86.605,86.545,19.48872878]
[1770570314464,18.8053311,86.628,86.545,19.48872878]
[1770570314676,8.97185387,86.627,86.545,19.48872878]
[1770570314868,18.8053311,86.628,86.545,19.48872878]
[1770570315068,18.8053311,86.628,86.569,18.59275048]
[1770570315369,18.73484316,86.661,86.57,34.75]